Cogmind - Beta 11.2 @@@ ROGUE MODE // 2023.01.12 @ 09:33:44 Player: yota99 Result: Destroyed by G-34 Mercenary with Small Laser Performance ------------- Evolutions (0) 0 Regions Visited (1) 200 Robots Destroyed (12) 60 Value Destroyed (185) 185 Prototype IDs (0) 0 Alien Tech Used (0) 0 Bonus (0) 0 TOTAL SCORE: 445 Bonus ------- None Cogmind --------- Core Integrity 0/250 Matter 300/300 Energy 182/250 System Corruption 2% Temperature Hot (210) Movement Rolling (115) Ox1 Location -10/Materials Parts ------- > --- POWER (1) -------- Ion Engine > --- PROPULSION (2) --- Compact Wheel > --- UTILITY (2) ------ Large Storage Unit Seismic Detector > --- WEAPON (2) ------- EM Pulse Gun EM Pulse Gun > --- INVENTORY (15) --- Light Ion Engine Wheel Wheel Wheel Compact Wheel Sensor Array Seismic Detector Assault Rifle Grenade Launcher Peak State ------------ > --- POWER ------------ Ion Engine > --- PROPULSION ------- Wheel Compact Wheel > --- UTILITY ---------- Small Storage Unit Seismic Detector > --- WEAPON ----------- EM Pulse Gun EM Pulse Gun > --- INVENTORY -------- Light Ion Engine Wheel Wheel Compact Wheel Improved Terrain Scanner Assault Rifle [Rating: 7] Favorites ----------- Power Ion Engine Engine Ion Engine Propulsion Compact Wheel Wheel Compact Wheel Utility Seismic Detector Device Seismic Detector Storage Large Storage Unit Weapon EM Pulse Gun Energy Gun EM Pulse Gun Build | -11 -10 ------- Run | Scr Mat Slots Evolved . | . . Power . | . . Propulsion . | . . Utility . | . . Weapon . | . . Parts Attached 10 | 8 2 Power 1 | 1 . Engine 1 | 1 . Core . | . . Reactor . | . . Propulsion 2 | 2 . Treads . | . . Leg . | . . Wheel 2 | 2 . Hover . | . . Flight . | . . Utility 5 | 3 2 Device 3 | 2 1 Storage 2 | 1 1 Processor . | . . Hackware . | . . Protection . | . . Artifact . | . . Weapon 2 | 2 . Energy Gun 2 | 2 . Energy Cannon . | . . Ballistic Gun . | . . Ballistic Cannon . | . . Launcher . | . . Special Weapon . | . . Impact Weapon . | . . Slashing Weapon . | . . Piercing Weapon . | . . Special Melee Weapon . | . . Unidentified Prototypes . | . . Corrupted Parts 2 | 2 . System Corruption 2 | 2 . Parts Lost 1 | . 1 Power . | . . Propulsion 1 | . 1 Utility . | . . Weapon . | . . Highest Loss Streak 1 | . 1 To Critical Strikes . | . . Average Slot Usage (%) 93 | . 93 Engine 14 | . 14 Wheel 22 | . 22 Device 14 | . 14 Storage 14 | . 14 Energy Gun 28 | . 28 Naked Turns . | . . Heaviest Build 30 | 15 30 Greatest Support 26 | 26 26 Greatest Overweight (x) 1 | . 1 Average Overweight (x) . | . . Largest Inventory Capacity 15 | 8 15 Average Capacity 11 | 7 14 Most Carried 9 | 8 9 Average Carried 6 | 4 8 Final Capacity 15 | 8 15 Final Carried 9 | 7 9 Class Distribution -------------------- 100% | Mutant Dominant Class ---------------- Mutant | -10/Materials Resources | -11 -10 ----------- Run | Scr Mat Matter Collected 295 | 280 15 Remotely . | . . Salvage Created 403 | 211 192 Parts 30 | 18 12 Haulers Intercepted 1 | . 1 Recyclers Shooed 1 | 1 . Parts Field Recycled . | . . Retrieved Matter . | . . Parts Self-Destructed . | . . Prevented . | . . Kills | -11 -10 ------- Run | Scr Mat Combat Hostiles Destroyed 5 | . 5 Guns 3 | . 3 AOE 2 | . 2 Classes Destroyed 5 | 2 3 Tunneler 5 | 5 . Hauler 1 | . 1 Recycler 1 | 1 . Swarmer 2 | . 2 Grunt 3 | . 3 Best Kill Streak 4 | 4 4 Combat Bots Only 4 | . 4 Max Kills in Single Turn 3 | 1 3 Gunslinging . | . . Exploded 2 | . 2 Melee . | . . Uniques/NPCs Destroyed . | . . Combat | -11 -10 -------- Run | Scr Mat Damage Taken 449 | . 449 Core 254 | . 254 Absorbed by Shields . | . . Core Remaining (%) 100 | 100 . Volleys Fired 33 | 13 20 Largest 2 | 2 2 Hottest 80 | 80 80 Shots Fired 66 | 26 40 Gun 66 | 26 40 Cannon . | . . Launcher . | . . Special . | . . Kinetic . | . . Thermal . | . . Explosive . | . . Electromagnetic 66 | 26 40 Robot Hit Streak 6 | 5 6 Robot Miss Streak 3 | 2 3 Penetration Max . | . . Secondary Targets 1 | . 1 Max Gunslinging Chain 1 | . 1 Shots Hit Robots 42 | 15 27 Core Hits 14 | 7 7 Critical Kills . | . . Critical Parts Destroyed . | . . Critical Strikes . | . . Melee Attacks . | . . Impact . | . . Slashing . | . . Piercing . | . . Sneak Attacks . | . . Combat Hostiles . | . . Follow-up Attacks . | . . Damage Inflicted 848 | 255 593 Guns 583 | 225 358 Cannons . | . . Explosions 265 | 30 235 Melee . | . . Ramming . | . . Kinetic . | . . Thermal 166 | 30 136 Explosive 99 | . 99 Electromagnetic 583 | 225 358 Impact . | . . Slashing . | . . Piercing . | . . Highest Corruption 2 | 2 2 Average Corruption 1 | 1 2 Corruption Purged . | . . Corruption Blocked . | . . Effects 1 | . 1 Data Loss (minor) 1 | . 1 Overload Shots . | . . Overflow Damage 8 | . 8 Projectiles . | . . Explosions 8 | . 8 Melee . | . . Knockbacks . | . . Impact . | . . Kinetic . | . . Secondary . | . . Self-Inflicted Damage 228 | . 228 Shots 3 | . 3 Rammed . | . . Targets Rammed . | . . Kicked . | . . Crushed . | . . Highest Temperature 204 | 72 204 Average Temperature 54 | 33 69 Received Heat Transfer 60 | . 60 Siege Activations . | . . Robots Corrupted . | . . Combat Hostiles . | . . Parts Fried 2 | 1 1 Impact Corruptions . | . . Robots Melted . | . . Combat Hostiles . | . . Parts Melted . | . . Heat Transferred 300 | 50 250 Parts Sabotaged . | . . Parts Stolen . | . . Parts Stripped . | . . Power Chain Reactions 3 | 1 2 Missiles Intercepted . | . . Alert | -11 -10 ------- Run | Scr Mat Peak Influence 308 | 30 308 Initial 19 | . 19 Average 76 | 14 127 Maximum Alert Level 1 | . 1 Low Security (%) 94 | 100 89 Level 1 5 | . 10 Level 2 . | . . Level 3 . | . . Level 4 . | . . Level 5 . | . . High Security . | . . Max Security . | . . Squads Dispatched 2 | . 2 Investigation 1 | . 1 Extermination . | . . Reinforcement 1 | . 1 Assault . | . . Garrison . | . . Intercept . | . . Searches Triggered . | . . Construction Impeded . | . . Haulers Reinforced . | . . Active Scanning Responses . | . . Cargo Convoy Interrupts . | . . Stealth | -11 -10 --------- Run | Scr Mat Distress Signals . | . . Communications Jammed . | . . Distress Signals . | . . Times Spotted 11 | . 11 Peak Tracking Total 6 | . 6 Tactical Retreats 2 | . 2 Traps | -11 -10 ------- Run | Scr Mat Traps Triggered . | . . Indirectly . | . . Trap Hack Attempts . | . . Triggered . | . . Disarmed . | . . Reprogrammed . | . . Reused . | . . Traps Extracted . | . . Installed . | . . Triggered . | . . Machines | -11 -10 ---------- Run | Scr Mat Machines Disabled 2 | . 2 Max in Single Turn 2 | . 2 Machines Sabotaged . | . . Garrisons Compromised . | . . Overloaded Fab Kills . | . . Hacking | -11 -10 --------- Run | Scr Mat Machines Accessed 1 | . 1 Terminals 1 | . 1 Fabricators . | . . Repair Stations . | . . Recycling Units . | . . Scanalyzers . | . . Garrison Access . | . . Total Hacks 2 | . 2 Successful 1 | . 1 Failed 1 | . 1 Catastrophic 1 | . 1 Database Lockouts . | . . Manual 2 | . 2 Terminals 2 | . 2 Fabricators . | . . Repair Stations . | . . Recycling Units . | . . Scanalyzers . | . . Garrison Access . | . . Terminal Hacks 1 | . 1 Robot Analysis 1 | . 1 Fabricator Hacks . | . . Repair Station Hacks . | . . Recycling Unit Hacks . | . . Scanalyzer . | . . Garrison Access Hacks . | . . Unauthorized Hacks . | . . Terminals . | . . Fabricators . | . . Repair Stations . | . . Recycling Units . | . . Scanalyzers . | . . Garrison Access . | . . Data Cores Recovered . | . . Used . | . . Hacking Detections 1 | . 1 Full Trace Events 1 | . 1 Feedback Events . | . . Feedback Blocked . | . . Robot Schematics Acquired . | . . Robots Built . | . . Authchips . | . . Time . | . . Total Robot Build Rating . | . . Part Schematics Acquired . | . . Parts Built . | . . Authchips . | . . Time . | . . Total Part Build Rating . | . . Parts Repaired . | . . Time . | . . Parts Recycled . | . . Recycled Matter . | . . Retrieved Matter . | . . Retrieved Components . | . . Parts Scanalyzed . | . . Part Schematics Acquired . | . . Parts Damaged . | . . Bothacking | -11 -10 ------------ Run | Scr Mat Used RIF Installer . | . . Robots Hacked . | . . Non-combat . | . . Combat . | . . Robot Hacks Applied . | . . Relay Couplers Released . | . . Fabnet Peak Effective % . | . . Robots Rewired . | . . Allies Hacked . | . . Hacks Repelled . | . . Allies | -11 -10 -------- Run | Scr Mat Total Allies . | . . Largest Group . | . . Highest-Rated Group . | . . Highest-Rated Ally . | . . Total Orders . | . . Ally Attacks . | . . Total Damage . | . . Kills . | . . Allies Corrupted . | . . Allies Melted . | . . Intel | -11 -10 ------- Run | Scr Mat Robot Analysis Total 1 | . 1 Derelict Logs Recovered . | . . Drone Launches . | . . Drone Recoveries . | . . Exploration | -11 -10 ------------- Run | Scr Mat Turns Passed 318 | 144 174 Spaces Moved 176 | 70 106 Core 4 | 4 . Treads . | . . Legs . | . . Wheels 172 | 66 106 Hover . | . . Flight . | . . Fastest Speed 50 | 50 90 Average Speed 97 | 87 104 Slowest Speed 115 | 90 115 Overloaded Moves . | . . Propulsion Burnouts . | . . Robots Hopped . | . . Cave-ins Triggered . | . . Exploration Rate (%) 13 | 3 23 Regions Visited 1 Branch Regions . Pre-discovered Areas . | . . Known Exits Taken . | . . Unknown Exits Taken 1 | 1 . Scrap Searched . | . . Spaces Dug . | . . Terrain Destroyed 32 | 5 27 Melee . | . . Projectile . | . . AOE 32 | 5 27 Terrain Rammed . | . . Walls Destroyed . | . . Machines Disabled . | . . Actions | -11 -10 --------- Run | Scr Mat Total 256 | 125 131 Wait 20 | 20 . Move 175 | 69 106 Hop . | . . Pick Up 15 | 13 2 Fast Attach 3 | 3 . Attach 4 | 4 . Detach . | . . Swap 3 | 1 2 Drop 3 | 2 1 Fire 33 | 13 20 Melee . | . . Ram . | . . Kick . | . . Crush . | . . Escape Stasis . | . . Rewire . | . . Trap . | . . Miscellaneous . | . . Route ------- -11/Scrapyard -10/Materials History --------- Turn | Location | Event 8 | -11/Scrapyard | Discovered new exit (range 16) 145 | -11/Scrapyard | Entered Materials 202 | -10/Materials | Core integrity fell below 50% 302 | -10/Materials | Build established: Mutant 304 | -10/Materials | Core integrity fell below 20% 319 | -10/Materials | Destroyed by G-34 Mercenary with Small Laser Last Messages --------------- construction but with fairly weak armament. Internal systems are not as protected as they could be, to enable rapid repair in the field, but this also makes them somewhat susceptible to additional damage from electromagnetic attacks. Grunts patrol in groups, or sometimes operate alone as hauler escorts to protect those with more valuable cargo. 00280_ ALERT: Suspicious activity at Terminal M004. Dispatching Investigation squad. 00285_ K-01 Serf collects debris. 00286_ R-06 Scavenger inserts Corrupted Heat Sink into recycling unit. 00289_ K-01 Serf collects debris. 00298_ K-01 Serf cleans the Recycling Unit. 00299_ G-34 Mercenary IFF system glitched. 00300_ G-34 Mercenary destroyed. 00300_ Switching to secondary target: G-34 Mercenary. 00300_ Chain reaction triggered in Lgt. Ion Engine. 00301_ K-01 Serf collects debris. 00305_ K-01 Serf cleans the Recycling Unit. 00306_ S-10 Pest destroyed. 00309_ K-01 Serf collects debris. 00313_ G-34 Mercenary misfires. Map ----- +----------------------------------------------------+ | ?????#!!!!||## # #??????????????????????? | | ?????#!!!!||## # """ #??????????????????????? | | ?????######### + """ #??????????????????????? | | ?????????????# # """ #??????????????????????? | | ?????????????# # !#??????????????????????? | | ?????????????# ####+###??????????????????????? | | ?????????????# #### ######???????????????????? | | ????????????## # # #??????????????????? | | ????????????# # # " #??????????????????? | | ???????###### # """ #??????????????????? | | ???????# "" #??????????????????? | | ???????# " """ #??????????????????? | | ???????# """ # "" #??????????????????? | | ???????# """ """ #??????????????????? | | ???????# """ # """ #??????????????????? | | ???????# "" # """ #??????????????????? | | ???????# """ # k # " #??????????????????? | | ???????# "" # #??????????????????? | | ???????# "" # #??????????????????? | | ######## " #######??????????????????? | | # ## #????????????????????????? | | # ## # "Y" ##???????????????????????? | | # ##+##+## """ #???????????????????????? | | # """ # #???????????????????????? | | # """ # k % ########;%= ???????? | | # """ / ##+####### @ *!%=[% g ???????? | | # # # ###+##########;=%= ???????? | | #! # # # #???????????????????? | | # ""#### # #???????????????????? | | # T"#??# # #???????????????????? | | # ""#??# # #???????????????????? | | # #??# #"" """ #???????????????????? | | ######???# #"T """ #???????????????????? | | ?????????# #"" """ #???????????????????? | | ?????????# # #???????????????????? | | ?????????# ###########???????????????????? | | ??????????########?????????????????????????????? | | | | | | | | | | | | | | | | | | | | | | | | | | | +----------------------------------------------------+ Best States ------------- Heat Dissipation 25 Energy Generation 10 Energy Capacity 250 Matter Stores 300 Matter Capacity 300 Sight Range 16 Terrain Scan Density 10 Evasion (%) 42 Item Schematics ----------------- None Robot Schematics ------------------ None Fabricated ------------ Nothing Alien Tech Used ----------------- None Achievements -------------- None Challenges ------------ None Game ------ Seed ColdStealthAutohacker Manual? 0 Play Time 00:04:52 Cumulative 37.7 hours Start 2023.01.12 @ 09:30:29 End 2023.01.12 @ 09:33:44 Sessions 1 Manual Loads 0 Difficulty Rogue Special Mode None Game No. 58 Rogue 58 Adventurer 0 Explorer 0 Win Type - Total 0 Types 0/0/0/0/0/0/0/0/0 Lore% 21 Gallery% 30 Achievement% 27 Wizard Run 0 Options --------- ASCII 0 Keyboard 0 Movement Numpad Keybinds 0 Fullscreen 2 Font 24/Terminus Map View 76x50 Tactical HUD 1 Map Filters NONE Filters NONE Steam 1 RUN: d3359137-32be-4a2e-a71e-efb6fad87229